bitfinex/quotes_ETHUSD_20240716
["timestamp","ask_amount","ask_price","bid_price","bid_amount"]
[1721140179632,3.377,3409.5,3408.3,2.99266198]
[1721140179633,2.93328,3409.2,3408.3,2.99266198]
[1721140179831,2.93338,3409.1,3408.3,2.99266198]
[1721140180200,2.93309,3409.4,3408.6,2.93369]
[1721140180406,2.93315,3409.3,3408.6,2.93369]
[1721140183238,3.377,3409.5,3408.4,3.0]
[1721140183239,2.93332,3409.2,3408.4,3.0]
[1721140183437,2.93348,3409.0,3408.4,3.0]
[1721140183738,2.9335,3408.9,3408.4,3.0]
[1721140183951,2.93377,3408.6,3408.2,9.7125]
[1721140184111,2.93377,3408.6,3408.2,2.4125]
[1721140185040,1.215775,3409.3,3408.2,2.4125]
[1721140185041,2.93344,3409.0,3408.2,2.4125]
[1721140185413,2.9335,3408.9,3408.2,2.4125]
[1721140185659,2.93364,3408.8,3408.2,2.4125]
[1721140185834,1.215775,3409.3,3408.2,5.34659]
[1721140185835,2.93335,3409.1,3408.2,5.34659]
[1721140186162,2.93345,3409.0,3408.3,2.93401]
[1721140186357,2.93352,3408.9,3408.2,2.4125]
[1721140186550,2.93366,3408.8,3408.2,2.4125]
[1721140187162,2.93368,3408.7,3408.2,2.4125]
[1721140187467,2.93403,3408.3,3407.8,9.7833]
[1721140187769,2.9344,3407.9,3407.3,9.7833]
[1721140187966,3.377,3408.4,3407.3,2.4833]
[1721140187967,2.93461,3407.6,3407.3,2.4833]
[1721140189274,2.93445,3407.8,3407.3,2.4833]
[1721140190980,2.93437,3407.9,3407.3,2.4833]
[1721140191540,2.93454,3407.7,3407.3,2.4833]
[1721140191764,2.93428,3408.0,3407.3,2.4833]
[1721140191968,3.377,3408.4,3407.4,0.05869003]
[1721140192163,1.52200976,3408.6,3407.3,3.325118]
[1721140192164,2.93378,3408.6,3407.3,3.325118]
[1721140192372,2.93397,3408.4,3407.7,2.93451]
[1721140192671,2.93401,3408.3,3407.5,2.93464]
[1721140193445,2.93397,3408.4,3407.7,2.93452]
[1721140193649,2.93397,3408.4,3407.7,3.521436]
[1721140194449,2.93402,3408.3,3407.7,3.521436]
[1721140194648,4.59449547,3408.9,3407.7,3.521436]
[1721140194649,1.21749547,3408.8,3407.7,2.93452]
[1721140194864,4.15103547,3408.9,3408.2,2.93403]
[1721140195074,2.93354,3408.9,3408.2,2.93403]
[1721140195277,3.377,3409.4,3408.1,5.25247]
[1721140195278,2.93346,3409.0,3408.1,5.25247]
[1721140195578,2.93346,3409.0,3408.2,2.93406]
[1721140195579,2.93359,3408.8,3408.2,2.93406]
[1721140197147,2.93359,3408.8,3408.1,2.3183]
[1721140197862,2.93396,3408.4,3408.1,2.3183]
[1721140198273,2.93382,3408.6,3408.1,2.3183]
[1721140198488,2.9339,3408.5,3408.1,2.3183]
[1721140199281,2.93395,3408.4,3408.1,2.3183]
[1721140199865,5.86728,3408.8,3408.1,2.3183]
[1721140200063,2.93373,3408.7,3408.1,2.3183]
[1721140200562,2.93377,3408.6,3408.1,2.3183]
[1721140200774,2.534,3408.3,3407.5,2.469]
[1721140200980,0.58675,3408.6,3407.3,7.3]
[1721140200981,2.534,3407.9,3407.3,7.3]
[1721140201295,2.93387,3408.5,3407.3,7.3]
[1721140201296,2.93432,3408.0,3407.3,7.3]
[1721140201462,2.93411,3408.2,3407.6,2.9346]
[1721140201463,2.9341,3408.2,3407.6,2.9346]
[1721140201658,2.9341,3408.2,3407.5,2.93467]
[1721140202075,2.93406,3408.3,3407.6,2.9346]
[1721140202292,2.93433,3408.0,3407.3,7.3]
[1721140202492,2.93433,3408.0,3407.3,10.23485]
[1721140202801,2.93441,3407.9,3407.3,10.23485]
[1721140202973,2.93414,3408.2,3407.3,10.23485]
[1721140203164,2.93414,3408.2,3407.5,2.93467]
[1721140203365,2.93414,3408.2,3407.3,10.23485]
[1721140203366,2.93433,3408.0,3407.3,10.23485]
[1721140203880,2.93478,3407.4,3407.3,7.3]
[1721140204080,2.93451,3407.8,3407.1,2.469]
[1721140204296,2.93453,3407.7,3407.1,2.469]
[1721140204608,2.93472,3407.5,3407.1,2.469]
[1721140204909,2.93463,3407.6,3407.1,2.469]
[1721140205117,2.93472,3407.5,3407.1,2.469]
[1721140205570,2.93472,3407.5,3406.7,7.3]
[1721140205571,5.46872,3407.5,3406.7,7.3]
[1721140205778,2.534,3407.1,3406.7,7.3]
[1721140205976,2.93501,3407.2,3406.7,7.3]
[1721140206200,2.93513,3407.0,3406.7,7.3]
[1721140206399,2.93504,3407.1,3406.7,7.3]
[1721140206628,2.93513,3407.0,3406.7,7.3]
[1721140206924,2.93528,3406.9,3406.7,7.3]
[1721140207129,5.4691,3407.1,3406.7,7.3]
[1721140207409,2.93515,3407.0,3406.7,7.3]
[1721140208015,2.93515,3407.0,3406.2,12.16]
[1721140208016,2.93562,3406.5,3406.0,2.4337]
[1721140208868,2.93547,3406.7,3406.0,5.36968]
[1721140209467,3.383,3406.9,3405.6,7.3]
[1721140209726,2.93571,3406.4,3405.7,5.93621]
[1721140209872,2.93557,3406.5,3405.7,5.93621]
[1721140209873,2.93557,3406.5,3405.9,2.93608]
[1721140210068,2.9354,3406.7,3406.0,2.93598]
[1721140210607,2.93566,3406.4,3405.7,7.783798]
[1721140210765,2.93566,3406.4,3405.7,5.93624]
[1721140211283,3.383,3406.9,3405.8,2.93611]
[1721140211284,2.93553,3406.6,3405.8,2.93611]
[1721140211481,1.21877367,3407.1,3406.0,2.425]
[1721140211680,2.93519,3407.0,3406.0,2.425]
[1721140211880,2.93523,3406.9,3406.1,2.93584]
[1721140212091,2.93523,3406.9,3406.3,2.93572]
[1721140212427,1.21877367,3407.3,3406.3,2.93572]
[1721140212597,4.90501276,3407.4,3406.6,2.93541]
[1721140212598,6.31784,3407.4,3406.6,2.93541]
[1721140212928,6.31784,3407.4,3406.3,0.829656]
[1721140212929,2.9349,3407.3,3406.5,2.93552]
[1721140213126,2.93501,3407.2,3406.5,2.93552]
[1721140213293,3.383,3407.4,3406.0,2.425]
[1721140213294,2.93536,3406.8,3406.0,2.425]
[1721140213497,2.93496,3407.2,3406.5,2.93553]
[1721140213810,2.93516,3407.0,3406.3,2.93568]
[1721140214212,2.93524,3406.9,3406.0,2.425]
[1721140214384,2.93496,3407.2,3406.3,2.93567]
[1721140214586,4.60177367,3407.4,3406.6,2.93542]
[1721140214587,6.31785,3407.4,3406.6,2.93542]
[1721140214984,2.93454,3407.7,3406.8,2.4513]
[1721140215184,2.93454,3407.7,3407.0,2.93512]
[1721140215388,2.93447,3407.8,3406.8,5.3866]
[1721140215694,4.59994248,3407.9,3407.0,2.93513]
[1721140215695,6.31736,3407.9,3407.0,2.93513]
[1721140215918,6.31736,3407.9,3407.2,2.9349]
[1721140216135,2.93418,3408.1,3407.2,2.9349]
[1721140216136,5.86844,3408.1,3407.2,2.9349]
[1721140216283,2.93418,3408.1,3407.2,2.9349]
[1721140216485,2.93442,3407.9,3407.0,5.87019]
[1721140216732,2.93438,3407.9,3407.2,2.93494]
[1721140217234,1.21694248,3408.3,3406.8,2.4513]
[1721140217235,4.15099248,3408.3,3406.8,2.4513]
[1721140217528,4.15099248,3408.3,3407.6,2.93456]
[1721140217529,2.93401,3408.3,3407.6,2.93456]
[1721140217684,3.383,3408.4,3407.8,2.93436]
[1721140218044,3.383,3408.4,3407.8,5.86873]
[1721140218322,1.21694248,3409.2,3408.3,2.93399]
[1721140218536,2.93319,3409.3,3408.3,2.93399]
[1721140218537,2.93341,3409.0,3408.3,2.93399]
[1721140218681,2.93332,3409.2,3408.3,2.93399]
[1721140218885,2.93334,3409.1,3408.4,2.2691]
[1721140219137,3.564974,3409.1,3408.4,2.2691]
[1721140219682,2.93342,3409.0,3408.4,2.2691]
[1721140219981,3.564974,3409.1,3408.4,2.2691]
[1721140219982,2.93334,3409.1,3408.4,2.2691]
[1721140220177,3.383,3409.4,3408.4,5.20294]
[1721140220178,2.93324,3409.2,3408.4,5.20294]
[1721140220394,2.93332,3409.1,3408.4,5.20294]
[1721140220807,3.383,3409.4,3408.6,2.93374]
[1721140221012,3.383,3409.9,3409.0,2.9334]
[1721140221384,6.31567,3409.9,3409.0,2.9334]
[1721140221693,2.93273,3409.8,3409.3,2.3395]
[1721140222212,2.93257,3410.0,3409.3,2.3395]
[1721140222414,4.59994248,3410.4,3409.3,2.3395]
[1721140222415,2.93265,3409.9,3409.3,2.3395]
[1721140222911,2.93261,3410.0,3409.3,2.3395]
[1721140223114,2.93256,3410.0,3409.3,2.3395]
[1721140223278,2.93253,3410.1,3409.3,2.3395]
[1721140223482,0.293253,3410.0,3409.3,2.3395]
[1721140223719,2.93269,3409.9,3409.3,2.3395]
[1721140224416,2.93281,3409.7,3408.8,2.4893]
[1721140224585,2.93278,3409.8,3409.0,2.93334]
[1721140224786,2.93273,3409.8,3409.0,2.93334]
[1721140224981,2.93284,3409.7,3409.0,2.93334]
[1721140225418,2.93284,3409.7,3408.8,2.4893]
[1721140225623,2.93303,3409.5,3408.8,2.4893]
[1721140226220,2.93307,3409.4,3408.8,2.4893]
[1721140226616,2.93339,3409.1,3408.8,2.4893]
[1721140226886,3.383,3409.9,3408.8,2.4893]
[1721140226887,2.93313,3409.4,3408.8,2.4893]
[1721140227089,2.93313,3409.4,3408.3,2.3151]
[1721140227090,2.93325,3409.2,3408.3,2.3151]
[1721140227329,3.969617,3409.4,3408.3,2.3151]
[1721140227537,3.969617,3409.4,3408.6,2.93375]
[1721140227538,3.519707,3409.4,3408.6,2.93375]
[1721140227821,2.93283,3409.7,3408.3,2.3151]
[1721140227822,2.93326,3409.2,3408.3,5.24905]
[1721140228018,2.93334,3409.1,3408.3,5.24905]
[1721140228217,2.93334,3409.1,3408.4,2.93389]
[1721140228394,2.93326,3409.2,3408.5,2.93383]
[1721140228395,2.9333,3409.2,3408.5,2.93383]
[1721140228585,2.93343,3409.0,3408.3,5.24905]
[1721140228791,2.93343,3409.0,3408.3,2.3151]
[1721140229003,2.93359,3408.8,3408.3,3.0]
[1721140229186,2.93372,3408.7,3408.0,3.0]
[1721140229627,2.93359,3408.8,3408.0,3.0]
[1721140229628,2.93376,3408.6,3408.0,3.0]
[1721140229790,3.383,3409.0,3407.8,2.3469]
[1721140229994,2.93401,3408.3,3407.8,2.3469]
[1721140230194,2.9336,3408.8,3407.8,2.3469]
[1721140230421,2.93399,3408.4,3407.8,2.3469]
[1721140230621,2.93379,3408.6,3407.5,7.3]
[1721140230809,2.93432,3408.0,3407.5,7.3]
[1721140231123,2.93449,3407.8,3407.2,2.4102]
[1721140231625,2.93454,3407.7,3407.2,2.4102]
[1721140231821,2.93479,3407.4,3407.0,7.3]
[1721140232300,2.93489,3407.3,3407.0,7.3]
[1721140232507,2.93489,3407.3,3406.8,14.5702]
[1721140232508,2.93497,3407.2,3406.8,2.4102]
[1721140232807,2.93479,3407.4,3406.8,2.4102]
[1721140233004,0.586943,3407.3,3406.5,7.3]
[1721140233214,2.9349,3407.3,3406.5,7.3]
[1721140233615,2.93496,3407.2,3406.5,7.3]
[1721140233941,2.93505,3407.1,3406.5,7.3]
[1721140234298,2.9349,3407.3,3406.5,7.3]
[1721140234518,2.93505,3407.1,3406.5,7.3]
[1721140234719,2.93503,3407.2,3406.5,8.853871]
[1721140235022,2.93455,3407.7,3406.8,2.9353]
[1721140235252,2.93455,3407.7,3406.9,2.9352]
[1721140235518,4.76143154,3408.8,3406.5,8.853871]
[1721140235519,4.15080248,3408.5,3407.4,2.93477]
[1721140235793,4.15080248,3408.5,3407.5,0.05868819]
[1721140235794,3.32436317,3408.5,3407.5,0.05868819]
[1721140235925,2.93406,3408.3,3407.5,0.05868819]
[1721140236139,0.39050317,3408.5,3407.4,2.93477]
[1721140236315,2.93427,3408.0,3407.3,2.93486]
[1721140236514,2.93415,3408.2,3407.4,2.93478]
[1721140236715,2.93405,3408.3,3407.4,2.93478]
[1721140237102,2.93418,3408.1,3407.4,2.93478]
[1721140237348,2.93405,3408.3,3407.4,2.93478]
[1721140237642,2.93387,3408.5,3407.9,2.3681]
[1721140237857,2.93408,3408.3,3407.9,2.3681]
[1721140238141,2.93435,3408.0,3407.3,2.4482]
[1721140238319,2.93435,3408.0,3407.3,4.016519]
[1721140238320,2.93428,3408.0,3407.3,4.016519]
[1721140238505,2.93413,3408.2,3407.5,2.93467]
[1721140239067,2.93426,3408.1,3407.3,4.016519]
[1721140239349,2.93435,3407.9,3407.4,3.0]
[1721140239548,2.93426,3408.1,3407.3,4.016519]
[1721140239715,2.93427,3408.0,3407.3,4.016519]
[1721140240049,2.93406,3408.3,3407.3,2.4482]
[1721140240243,2.93452,3407.8,3407.3,2.4482]
[1721140240410,2.93453,3407.7,3407.3,2.4482]
[1721140240737,2.93452,3407.8,3407.3,2.4482]
[1721140241142,2.93453,3407.7,3407.3,2.4482]
[1721140241662,2.93407,3408.3,3407.4,2.93473]
[1721140241663,2.93408,3408.3,3407.4,2.93473]
[1721140241949,2.93384,3408.5,3407.4,2.93473]
[1721140242107,2.93384,3408.5,3407.3,4.016532]
[1721140242108,2.93384,3408.5,3407.6,2.93459]
[1721140242436,2.9337,3408.7,3407.8,2.93436]
[1721140242638,2.9337,3408.7,3407.8,3.227796]
[1721140242829,2.9337,3408.7,3407.9,2.93428]
[1721140243025,2.9336,3408.8,3408.1,2.4063]
[1721140243226,2.93354,3408.9,3408.1,5.34047]
[1721140243534,2.93358,3408.8,3408.1,6.1972866]
[1721140243927,9.24975,3409.1,3408.1,6.1972866]
[1721140244127,2.93348,3409.0,3408.1,6.1972866]
[1721140244749,2.93338,3409.1,3408.4,2.93387]
[1721140244956,2.93338,3409.1,3408.4,3.390059]
[1721140245160,2.93301,3409.5,3408.6,2.93369]
[1721140245375,2.93303,3409.5,3408.5,2.93382]
[1721140245667,2.93316,3409.3,3408.6,2.93375]
[1721140245807,2.93303,3409.5,3408.7,2.93365]
[1721140246004,3.383,3409.6,3408.6,3.42785501]
[1721140246208,3.383,3409.6,3408.6,2.93368]
[1721140246622,3.383,3409.6,3408.4,3.390089]
[1721140246623,3.383,3409.6,3408.7,2.2525]
[1721140246819,2.93273,3409.8,3409.0,2.93333]
[1721140247444,2.93258,3410.0,3409.3,2.9331]
[1721140247608,3.383,3410.1,3408.8,0.22525]
[1721140247609,2.93249,3410.1,3409.2,2.93315]
[1721140247813,3.383,3410.6,3409.2,2.93315]
[1721140248033,3.383,3410.6,3408.9,7.3]
[1721140248034,2.93224,3410.4,3409.6,2.2525]
[1721140248354,2.93174,3411.0,3410.0,2.93248]
[1721140248645,2.93177,3410.9,3410.2,2.93236]
[1721140248819,2.93136,3411.4,3410.3,2.99092973]
[1721140249140,2.93161,3411.1,3410.3,3.77295797]
[1721140249512,3.383,3411.6,3410.1,2.4837]
[1721140249759,2.93183,3410.9,3410.1,2.4837]
[1721140250091,2.93176,3411.0,3410.2,2.93235]
[1721140250406,2.93144,3411.3,3410.5,2.9321]
[1721140250929,2.93152,3411.2,3410.5,2.9321]
[1721140251108,2.93135,3411.4,3410.5,2.9321]
[1721140251393,2.93152,3411.2,3410.4,2.9322]
[1721140251599,3.517808,3411.2,3410.4,2.9322]
[1721140251759,3.517808,3411.2,3410.3,2.93227]
[1721140251953,2.93148,3411.3,3410.4,2.9322]
[1721140252405,2.93137,3411.4,3410.4,2.9322]
[1721140252406,2.93156,3411.2,3410.4,2.9322]
[1721140252694,2.93162,3411.1,3410.4,2.9322]
[1721140253193,2.93162,3411.1,3410.3,2.93227]
[1721140253355,2.93162,3411.1,3410.4,2.93219]
[1721140253550,2.93145,3411.3,3410.4,4.497006]
[1721140253755,2.93152,3411.2,3410.4,1.564816]
[1721140253999,2.93162,3411.1,3410.4,1.564816]
[1721140254166,2.93194,3410.8,3410.2,3.0]
[1721140254557,2.93174,3411.0,3410.2,3.0]
[1721140254756,2.93174,3411.0,3410.1,2.4837]
[1721140255386,2.93184,3410.9,3410.1,2.4837]
[1721140255560,2.93174,3411.0,3410.1,4.055332]
[1721140255755,2.93174,3411.0,3410.2,3.0]
[1721140256702,2.9318,3410.9,3410.2,3.0]
[1721140257280,2.93166,3411.1,3410.2,3.0]
[1721140257485,2.93154,3411.2,3410.2,3.0]
[1721140257486,2.93171,3411.0,3410.2,3.0]
[1721140257696,2.93179,3410.9,3410.2,3.0]
[1721140258595,0.293154,3411.1,3410.2,3.0]
[1721140258783,0.293154,3411.1,3410.1,2.4837]
[1721140258784,2.932,3410.7,3410.1,2.4837]
[1721140258985,3.383,3411.1,3410.1,2.4837]
[1721140258986,2.93184,3410.9,3410.1,2.4837]
[1721140259311,2.93165,3411.1,3410.1,2.4837]
[1721140259594,2.93137,3411.4,3410.4,2.9322]
[1721140259797,3.383,3411.6,3410.6,2.93201]
[1721140259979,0.3383,3411.5,3410.6,2.93201]
[1721140260155,2.93143,3411.3,3410.6,2.93201]
[1721140260556,2.93143,3411.3,3410.1,2.4837]
[1721140260557,0.3383,3411.5,3410.2,7.3]
[1721140260753,2.93182,3410.9,3410.2,10.23236]
[1721140260983,2.932,3410.7,3410.2,7.3]
[1721140261271,3.383,3411.1,3410.1,2.4837]
[1721140261272,2.9322,3410.4,3410.1,2.4837]
[1721140261474,2.93204,3410.6,3410.1,2.4837]
[1721140261809,2.93218,3410.5,3410.1,2.4837]
[1721140262096,2.93179,3410.9,3410.1,2.4837]
[1721140262294,2.93187,3410.8,3410.1,5.41613]
[1721140262861,2.93184,3410.9,3410.1,5.41613]
[1721140263062,2.9314,3411.4,3410.6,2.93195]
[1721140263582,2.9314,3411.4,3410.4,2.93215]
[1721140263583,2.93158,3411.2,3410.4,2.93215]
[1721140264096,2.93158,3411.2,3410.5,2.93204]
[1721140264300,2.9314,3411.4,3410.8,2.4074]
[1721140264301,2.93141,3411.4,3410.8,2.4074]
[1721140264659,2.93156,3411.2,3410.8,2.4074]
[1721140264999,2.93141,3411.4,3410.8,2.4074]
[1721140265174,2.9312,3411.6,3410.8,2.4074]
[1721140265360,2.93109,3411.7,3411.0,2.93167]
[1721140265564,2.93098,3411.9,3411.1,2.93159]
[1721140265775,2.93098,3411.9,3411.0,2.93167]
[1721140266316,2.93031,3412.6,3411.1,3.0]
[1721140266317,2.93062,3412.3,3411.1,3.0]
[1721140266464,2.93062,3412.3,3411.4,2.93133]
[1721140266662,2.93079,3412.1,3411.4,2.93133]
[1721140267110,2.93087,3412.0,3411.4,2.93133]
[1721140267260,2.93087,3412.0,3411.3,2.93138]
[1721140267458,2.93079,3412.1,3411.2,2.3103]
[1721140267459,3.333,3412.1,3411.2,2.3103]
[1721140267662,2.93111,3411.7,3411.2,2.3103]
[1721140267864,2.93111,3411.7,3411.3,0.23103]
[1721140268790,3.383,3412.0,3411.3,0.23103]
[1721140269177,2.93117,3411.6,3411.3,0.23103]
[1721140269382,2.93104,3411.8,3411.3,0.23103]
[1721140269804,6.31383,3412.0,3411.3,0.23103]
[1721140270001,3.383,3412.0,3411.4,0.547283]
[1721140270330,2.93069,3412.2,3411.5,2.98984758]
[1721140270331,2.93073,3412.2,3411.5,2.98984758]
[1721140270468,2.93073,3412.2,3411.5,2.93123]
[1721140270668,2.93073,3412.2,3411.4,0.547283]
[1721140270669,2.93096,3411.9,3411.4,0.547283]
[1721140270871,2.9312,3411.6,3411.2,2.3103]
[1721140271182,2.93131,3411.5,3411.2,2.3103]
[1721140271382,2.93136,3411.4,3410.9,3.0]
[1721140271787,2.93182,3410.9,3410.7,2.379]
[1721140271987,2.93182,3410.9,3410.1,1.02555613]
[1721140271988,2.93205,3410.6,3410.1,8.32555613]
[1721140272271,2.93205,3410.6,3410.2,2.27472561]
[1721140272709,2.93187,3410.8,3410.2,2.27472561]
[1721140273010,2.93223,3410.4,3410.1,1.02555613]
[1721140273322,2.93204,3410.6,3410.1,1.02555613]
[1721140273773,3.383,3411.0,3410.1,1.02555613]
[1721140273774,2.932,3410.7,3410.1,1.02555613]
[1721140273972,2.93202,3410.7,3410.1,1.02555613]
[1721140274384,2.93204,3410.6,3410.1,1.02555613]
[1721140274596,2.93219,3410.5,3410.0,2.2617]
[1721140274915,2.9322,3410.4,3410.0,2.2617]
[1721140275678,2.93231,3410.3,3410.0,2.2617]
[1721140276040,2.93238,3410.2,3410.0,2.2617]
[1721140276402,2.93238,3410.2,3409.8,7.3]
[1721140276894,2.9319,3410.8,3409.8,7.3]
[1721140276895,2.93263,3409.9,3409.8,7.3]
[1721140277307,5.86526,3409.9,3409.8,7.3]
[1721140277669,6.451786,3409.9,3409.8,7.3]
[1721140278486,2.93306,3409.4,3408.6,2.3112]
[1721140278869,2.93315,3409.3,3408.6,5.24495]
[1721140279071,2.93317,3409.3,3408.6,2.3112]
[1721140279301,3.969526,3409.9,3408.7,0.23112]
[1721140279508,2.93247,3410.1,3408.7,6.16471]
[1721140279509,2.93292,3409.6,3408.7,6.16471]
[1721140279888,2.93307,3409.4,3408.7,3.23112]
[1721140280249,2.93326,3409.2,3408.7,3.23112]
[1721140280390,2.93324,3409.2,3408.7,3.23112]
[1721140280746,2.92891138,3409.2,3408.8,0.84761]
[1721140281299,2.93364,3408.8,3407.9,2.4904]
[1721140281599,2.93364,3408.8,3408.0,2.9342]
[1721140282609,2.93364,3408.8,3408.1,5.93416]
[1721140283122,2.93364,3408.8,3408.1,3.0]
[1721140283625,2.93384,3408.5,3407.9,2.4904]
[1721140283828,2.93384,3408.5,3407.9,3.3329]
[1721140284033,2.93384,3408.5,3408.0,3.0]
[1721140284350,2.93384,3408.5,3407.2,3.094]
[1721140284351,2.93419,3408.1,3407.3,2.3444]
[1721140284831,2.93436,3407.9,3407.3,2.3444]
[1721140285613,3.383,3407.9,3406.8,2.3444]
[1721140285819,2.93489,3407.3,3406.8,2.3444]
[1721140286455,2.93489,3407.3,3406.3,2.4768]
[1721140286456,2.9354,3406.7,3406.3,2.4768]
[1721140286905,2.9354,3406.7,3404.9,0.2942]
[1721140286906,2.93589,3406.2,3405.8,2.3406]
[1721140287098,3.383,3406.9,3405.8,2.3406]
[1721140287099,2.93591,3406.1,3405.8,2.3406]
[1721140287327,2.93567,3406.4,3405.9,0.23406]
[1721140287533,2.93585,3406.2,3405.9,0.23406]
[1721140287988,2.93585,3406.2,3405.8,2.3406]
[1721140289273,3.383,3406.9,3405.8,2.3406]
[1721140289433,2.93556,3406.5,3405.8,5.27671]
[1721140289798,3.383,3407.4,3406.1,2.93589]
[1721140290083,3.383,3407.4,3405.8,2.3406]
[1721140290084,2.93519,3407.0,3406.2,3.229399]
[1721140290382,3.383,3407.4,3406.2,0.293589]
[1721140290383,2.93505,3407.1,3406.2,0.293589]
[1721140290671,2.93547,3406.7,3405.8,2.3406]
[1721140290877,2.93549,3406.6,3405.8,5.27674]
[1721140291032,2.93549,3406.6,3405.9,2.93606]
[1721140291433,2.93549,3406.6,3405.8,5.27676]
[1721140291752,2.93574,3406.3,3405.8,2.3406]
[1721140292332,2.93538,3406.8,3405.8,3.168288]
[1721140292550,2.93557,3406.5,3405.8,3.168288]
[1721140292755,2.93571,3406.4,3405.8,3.168288]
[1721140292958,2.93542,3406.7,3405.8,3.168288]
[1721140294071,2.93496,3407.2,3405.8,3.168288]
[1721140294072,2.93575,3406.3,3405.8,3.168288]
[1721140294437,2.93575,3406.3,3405.8,2.3406]
[1721140295275,2.93583,3406.2,3405.6,3.0]
[1721140295499,2.93583,3406.2,3405.5,2.93641]
[1721140295779,2.93583,3406.2,3405.6,3.0]
[1721140295944,2.93565,3406.4,3405.6,3.0]
[1721140295945,2.93591,3406.1,3405.6,3.0]
[1721140296151,2.93591,3406.1,3405.4,2.469]
[1721140296152,2.93591,3406.1,3405.4,5.469]
[1721140296348,2.93591,3406.1,3405.5,0.840559]
[1721140296559,2.93591,3406.1,3405.5,3.840559]
[1721140297779,2.93591,3406.1,3405.5,6.776969]
[1721140298074,2.93559,3406.5,3405.6,2.93625]
[1721140298258,2.93545,3406.7,3405.9,2.93607]
[1721140298444,2.93564,3406.5,3405.7,0.9245809]
[1721140298765,2.93564,3406.5,3405.6,2.93625]
[1721140298766,2.93575,3406.3,3405.6,2.93625]
[1721140299144,2.93588,3406.2,3405.5,5.93641]
[1721140300150,2.936,3406.0,3405.5,3.0]
[1721140300348,2.93593,3406.1,3405.4,2.469]
[1721140300547,2.93609,3405.9,3405.4,2.469]
[1721140301079,2.93551,3406.6,3405.5,1.134226]
[1721140301244,2.93553,3406.6,3405.5,5.93638]
[1721140301443,2.93553,3406.6,3405.7,2.9362]
[1721140301444,2.93561,3406.5,3405.7,2.9362]
[1721140301657,2.93583,3406.2,3405.5,5.93638]
[1721140301968,2.93583,3406.2,3405.5,8.87272]
[1721140302155,2.93583,3406.2,3405.6,2.93633]
[1721140302365,2.93583,3406.2,3405.6,1.134167]
[1721140302569,2.93583,3406.2,3405.5,3.0]
[1721140302767,2.93597,3406.1,3405.5,3.0]
[1721140302967,2.93583,3406.2,3405.5,5.93641]
[1721140303341,2.93583,3406.2,3405.4,2.469]
[1721140303591,2.93607,3406.0,3405.4,2.469]
[1721140303767,2.93607,3406.0,3405.4,5.469]
[1721140303954,2.93607,3406.0,3405.4,6.603228]
[1721140304356,2.93583,3406.2,3405.4,6.603228]
[1721140304357,2.93583,3406.2,3405.4,9.539708]
[1721140304561,2.93599,3406.1,3405.4,9.539708]
[1721140304778,2.936,3406.0,3405.4,9.539708]
[1721140305245,2.93583,3406.2,3405.4,9.539708]
[1721140305446,2.93551,3406.6,3405.7,2.9362]
[1721140305854,2.93571,3406.4,3405.7,2.9362]
[1721140306114,2.93573,3406.3,3405.5,3.8903408]
[1721140306265,2.93573,3406.3,3405.6,2.93628]
[1721140306778,2.93573,3406.3,3405.7,2.93619]
[1721140306979,2.93573,3406.3,3405.7,4.16573408]
[1721140307181,2.93601,3406.0,3405.4,5.469]
[1721140307679,2.93585,3406.2,3405.4,5.469]
[1721140307680,2.93584,3406.2,3405.5,2.93634]
[1721140308549,2.9356,3406.5,3405.6,2.93633]
[1721140308550,2.93576,3406.3,3405.6,2.93633]
[1721140309445,2.93557,3406.5,3405.6,2.93633]
[1721140309644,3.383,3406.9,3406.1,2.4861]
[1721140309884,2.93507,3407.1,3406.1,2.4861]
[1721140310197,2.93513,3407.0,3406.4,2.93562]
[1721140310686,2.93523,3406.9,3406.1,2.4861]
[1721140310878,2.93509,3407.1,3406.2,0.835799]
[1721140311110,2.93553,3406.6,3406.2,0.835799]
[1721140311265,2.93553,3406.6,3406.1,2.4861]
[1721140311266,2.93563,3406.5,3406.1,2.4861]
[1721140311871,2.93534,3406.8,3406.1,2.4861]
[1721140312669,2.93534,3406.8,3406.1,5.42196]
[1721140312882,2.93534,3406.8,3406.1,8.3578]
[1721140313057,2.93534,3406.8,3406.2,0.83578]
[1721140313254,2.9354,3406.7,3406.2,0.83578]
[1721140314172,3.383,3406.9,3406.1,2.4861]
[1721140314173,2.93566,3406.4,3406.1,2.4861]
[1721140314375,2.93534,3406.8,3406.1,2.4861]
[1721140314700,2.93518,3407.0,3406.2,2.9358]
[1721140314861,2.93518,3407.0,3406.3,2.93568]
[1721140315054,2.93512,3407.1,3406.4,2.93564]
[1721140315260,2.93517,3407.0,3406.4,3.77726476]
[1721140315490,2.93517,3407.0,3406.4,0.84162476]
[1721140315695,6.3178,3407.4,3406.5,0.05870761]
[1721140315865,5.93443,3407.9,3406.1,2.4861]
[1721140315866,2.93473,3407.5,3406.7,2.93537]
[1721140316071,2.9348,3407.4,3406.8,2.3468]
[1721140316488,6.383,3407.9,3406.8,2.3468]
[1721140316489,2.93465,3407.6,3406.9,2.93516]
[1721140316852,2.93451,3407.8,3407.0,2.93511]
[1721140317095,3.0,3409.4,3407.4,2.264]